fUSD/lending_fUSD_20241004
["ID","MTS","AMOUNT","RATE_DAILY","PERIOD"]
[339859769,1728076245944,-500.0,0.00036986,120]
[339859770,1728076245954,-805.34,0.00036986,120]
[339859771,1728076245963,-500.0,0.00036986,120]
[339859772,1728076245972,-500.0,0.00036986,120]
[339859773,1728076245981,-593.91,0.00036986,120]
[339859774,1728076245991,-944.95,0.00036986,120]
[339859775,1728076246001,-500.0,0.00036986,120]
[339859776,1728076246010,-500.0,0.00036986,120]
[339859777,1728076246019,-500.0,0.00036986,120]
[339859778,1728076246029,-500.0,0.00036986,120]
[339859779,1728076246042,-500.0,0.00036986,120]
[339859780,1728076246052,-500.0,0.00036986,120]
[339859781,1728076246061,-218.27839079,0.00036986,120]
[339859782,1728076246070,-500.0,0.00036986,120]
[339859783,1728076246079,-500.0,0.00036986,120]
[339859784,1728076246089,-300.8776747,0.00036986,120]
[339859785,1728076246098,-738.08,0.00036986,120]
[339859786,1728076246108,-872.63,0.00036986,120]
[339859787,1728076246118,-500.0,0.00036986,120]
[339859788,1728076246129,-500.0,0.00036986,120]
[339859789,1728076246140,-500.0,0.00036986,120]
[339859790,1728076246149,-500.0,0.00036986,120]
[339859791,1728076246159,-581.39,0.00036986,120]
[339859792,1728076246171,-1000.0,0.00036989,30]
[339859793,1728076246181,-500.0,0.00036989,120]
[339859794,1728076246190,-500.0,0.00036989,120]
[339859795,1728076246199,-471.90582859,0.00036989,15]
[339859796,1728076246210,-54659.05650063,0.0003699,15]
[339859797,1728076246222,-176278.781568,0.0003699,6]
[339859798,1728076246234,-207.90205712,0.0003699,2]
[339859799,1728076246245,-151.83,0.0003699,2]
[339859800,1728076246255,-151.83,0.0003699,2]
[339859801,1728076246267,-151.83,0.0003699,2]
[339859802,1728076246278,-151.83,0.0003699,2]
[339859803,1728076246287,-151.100504,0.00036998,120]
[339859804,1728076246298,-2000.0,0.00036999,2]
[339859805,1728076246308,-1299917.30871246,0.00037,15]
[339859806,1728076246325,-653.325994,0.00037,15]
[339859807,1728076246426,-606.37577,0.00037,15]
[339859808,1728076246439,-276.75,0.00037,15]
[339859809,1728076246532,-16330.8655342,0.00037,15]
[339859810,1728076246590,-669.58337309,0.00037,15]
[339859811,1728076246647,-320199.08333066,0.00037,15]
[339859812,1728076246658,-6254.4,0.00037,15]
[339859819,1728077074468,164.06,0.00010959,2]
[339859820,1728077107953,83998.404453,0.00011,2]
[339859821,1728077107984,528624.16468705,0.00011,2]
[339859822,1728077152799,2372.41593424,0.00012,2]
[339859823,1728077278302,34519.57373246,0.00011,2]
[339859838,1728077431547,-500.22058489,0.0002,2]
[339859839,1728077431558,-1105.32315331,0.000249,4]
[339859840,1728077431571,-147.25100999,0.000249,4]
[339859841,1728077431580,-500.0,0.00024932,2]
[339859842,1728077431590,-28.84899001,0.00024932,2]
[339859843,1728077431602,-471.15100999,0.00024932,2]
[339859844,1728077431611,-500.0,0.00024932,2]
[339859845,1728077431622,-5052.03559992,0.00025,2]
[339859846,1728077431633,-250.22544296,0.00027,10]
[339859847,1728077431644,-1759.6288247,0.000327,5]
[339859848,1728077431667,-4831.3711753,0.000327,5]
[339859849,1728077431679,-316.45,0.00032893,2]
[339859850,1728077431689,-166.42,0.00034699,2]
[339859851,1728077431699,-211.04,0.0003474,2]
[339859852,1728077431709,-250.0,0.00034772,2]
[339859853,1728077431721,-200.0,0.00034833,2]
[339859854,1728077431731,-1500.0,0.0003484,50]
[339859855,1728077431742,-1922.0,0.0003484,15]
[339859856,1728077431752,-299.99,0.0003484,30]
[339859857,1728077431764,-150.99,0.0003484,2]
[339859858,1728077431774,-1252.5741633,0.00034905,6]
[339859859,1728077431786,-155.22,0.00034994,120]
[339859860,1728077431796,-18008.6,0.00035005,2]
[339859861,1728077431807,-257.0,0.00035058,2]
[339859862,1728077431817,-1000.0,0.00035059,2]
[339859863,1728077431828,-250.0,0.00035065,2]
[339859864,1728077431838,-250.0,0.00035066,120]
[339859865,1728077431849,-279.97,0.00035066,2]
[339859866,1728077431860,-2751.0,0.00035073,2]
[339859868,1728077431871,-154.051,0.00035073,2]
[339859870,1728077431882,-2000.0,0.00035076,120]
[339859872,1728077431893,-268.32,0.00035076,2]
[339859874,1728077431904,-200.0,0.00035081,2]
[339859876,1728077431914,-500.0,0.000351,2]
[339859878,1728077431926,-170.52,0.00035132,2]
[339859880,1728077431936,-465.069,0.00035139,41]
[339859882,1728077431947,-162.691,0.00035139,41]
[339859885,1728077431959,-316.45,0.00035157,2]
[339859886,1728077431969,-1000.0,0.00035269,2]
[339859887,1728077431980,-450.15,0.00035298,120]
[339859889,1728077431991,-387.22800719,0.00035991,2]
[339859890,1728077432001,-945.0,0.00036041,2]
[339859891,1728077432012,-423.34,0.00036219,2]
[339859892,1728077432022,-423.34,0.00036219,2]
[339859893,1728077432033,-423.34,0.00036301,2]
[339859894,1728077432043,-423.34,0.00036301,2]
[339859895,1728077432053,-423.34,0.00036301,2]
[339859896,1728077432064,-387.22800719,0.00036322,2]
[339859897,1728077432074,-174.22,0.00036385,91]
[339859898,1728077432084,-300.0,0.00036412,2]
[339859899,1728077432095,-387.22800719,0.00036446,2]
[339859900,1728077432105,-181.4,0.00036517,120]
[339859901,1728077432116,-2019.0,0.00036565,112]
[339859902,1728077432126,-182.12491614,0.000367,2]
[339859903,1728077432137,-387.22800721,0.00036717,2]
[339859904,1728077432147,-1348.9132,0.00036786,2]
[339859905,1728077432158,-25501.6616,0.00036786,2]
[339859906,1728077432168,-1220.0204,0.00036889,2]
[339859907,1728077432179,-217.0,0.0003689,2]
[339859908,1728077432190,-1998.61797716,0.00036899,9]
[339859909,1728077432200,-167.70630498,0.000369,2]
[339859910,1728077432211,-651.4299,0.000369,2]
[339859911,1728077432221,-158.32920976,0.000369,9]
[339859912,1728077432232,-153.83472069,0.000369,2]
[339859913,1728077432242,-211.54105485,0.000369,9]
[339859914,1728077432252,-7500.0,0.000369,2]
[339859915,1728077432263,-1248.01068474,0.000369,2]
[339859916,1728077432274,-342.9608443,0.000369,2]
[339859917,1728077432284,-525.57766066,0.000369,11]
[339859918,1728077432295,-714.75,0.00036904,2]
[339859919,1728077432305,-94143.522921,0.0003698,6]
[339859920,1728077432315,-500.0,0.00036986,120]
[339859921,1728077432326,-500.0,0.00036986,120]
[339859922,1728077432336,-500.0,0.00036986,120]
[339859923,1728077432346,-500.0,0.00036986,120]
[339859924,1728077432357,-500.0,0.00036986,120]
[339859925,1728077432367,-500.0,0.00036986,120]
[339859926,1728077432377,-500.0,0.00036986,7]
[339859927,1728077432388,-674.0,0.00036986,120]
[339859928,1728077432398,-500.0,0.00036986,120]
[339859929,1728077432408,-500.0,0.00036986,120]
[339859930,1728077432420,-500.0,0.00036986,120]
[339859931,1728077432430,-500.0,0.00036986,120]
[339859932,1728077432441,-500.0,0.00036986,120]
[339859933,1728077432451,-500.0,0.00036986,120]
[339859934,1728077432462,-757.41,0.00036986,120]
[339859935,1728077432472,-500.0,0.00036986,120]
[339859936,1728077432482,-500.0,0.00036986,120]
[339859937,1728077432493,-500.0,0.00036986,120]
[339859938,1728077432503,-335.91387219,0.00036986,120]
[339859939,1728077432514,-500.0,0.00036986,120]
[339859940,1728077432527,-500.0,0.00036986,120]
[339859941,1728077432537,-500.0,0.00036986,120]
[339859942,1728077432547,-500.0,0.00036986,120]
[339859943,1728077432558,-500.0,0.00036986,120]
[339859944,1728077432568,-1079.26,0.00036986,120]
[339859945,1728077432579,-500.0,0.00036986,120]
[339859946,1728077432589,-500.0,0.00036986,120]
[339859947,1728077432599,-500.0,0.00036986,120]
[339859948,1728077432610,-422.12149377,0.00036986,120]
[339859949,1728077432620,-500.0,0.00036986,120]
[339859950,1728077432630,-225.13570693,0.00036986,120]
[339859951,1728077432640,-500.0,0.00036986,120]
[339859952,1728077432651,-500.0,0.00036986,120]
[339859953,1728077432662,-500.0,0.00036986,120]
[339859954,1728077432672,-500.0,0.00036986,120]
[339859955,1728077432681,-500.0,0.00036986,120]
[339859956,1728077432692,-500.0,0.00036986,120]
[339859957,1728077432702,-500.0,0.00036986,120]
[339859958,1728077432712,-500.0,0.00036986,120]
[339859959,1728077432722,-500.0,0.00036986,120]
[339859960,1728077432732,-500.0,0.00036986,120]
[339859961,1728077432743,-500.0,0.00036986,120]
[339859962,1728077432752,-535.74,0.00036986,2]
[339859963,1728077432764,-715.99,0.00036987,120]
[339859964,1728077432775,-500.0,0.00036987,120]
[339859965,1728077432785,-183.70583286,0.00036987,120]
[339859966,1728077432795,-707.33,0.00036987,120]
[339859967,1728077432805,-500.0,0.00036988,120]
[339859968,1728077432816,-500.0,0.00036988,120]
[339859969,1728077432825,-500.0,0.00036988,120]
[339859970,1728077432835,-500.0,0.00036988,120]
[339859971,1728077432846,-500.0,0.00036988,120]
[339859972,1728077432857,-153.76888173,0.00036988,120]
[339859973,1728077432867,-500.0,0.00036988,120]
[339859974,1728077432879,-500.0,0.00036988,120]
[339859975,1728077432890,-500.0,0.00036988,120]
[339859976,1728077432901,-500.0,0.00036988,120]
[339859977,1728077432912,-500.0,0.00036988,120]
[339859978,1728077432922,-500.0,0.00036988,120]
[339859979,1728077432932,-649.83,0.00036988,120]
[339859980,1728077432943,-887.99,0.00036988,120]
[339859981,1728077432954,-659.88,0.00036988,120]
[339859982,1728077432964,-500.0,0.00036988,120]
[339859983,1728077432974,-500.0,0.00036988,120]
[339859984,1728077432984,-500.0,0.00036988,120]
[339859985,1728077432994,-1503.02,0.00036988,120]
[339859986,1728077433004,-760.44,0.00036988,120]
[339859987,1728077433013,-542.32,0.00036988,120]
[339859988,1728077433024,-500.0,0.00036988,120]
[339859989,1728077433034,-500.0,0.00036988,120]
[339859990,1728077433044,-652.21,0.00036988,120]
[339859991,1728077433054,-991.49,0.00036988,120]
[339859992,1728077433063,-500.0,0.00036988,120]
[339859993,1728077433072,-500.0,0.00036988,120]
[339859994,1728077433082,-500.0,0.00036988,120]
[339859995,1728077433091,-500.0,0.00036988,21]
[339859996,1728077433101,-500.0,0.00036988,120]
[339859997,1728077433111,-500.0,0.00036988,120]
[339859998,1728077433359,-771.79,0.00036988,120]
[339859999,1728077433369,-1666.74,0.00036988,120]
[339860000,1728077433380,-254.52723562,0.00036988,120]
[339860001,1728077433389,-500.0,0.00036988,120]
[339860002,1728077433399,-836.27,0.00036988,120]
[339860003,1728077433408,-3765.74091684,0.00036988,6]
[339860004,1728077433418,-7531.48183368,0.00036989,6]
[339860005,1728077433427,-500.0,0.00036989,120]
[339860006,1728077433438,-715.99,0.00036989,120]
[339860007,1728077433447,-500.0,0.00036989,120]
[339860008,1728077433456,-500.0,0.00036989,120]
[339860009,1728077433466,-500.0,0.00036989,120]
[339860010,1728077433475,-500.0,0.00036989,120]
[339860011,1728077433484,-500.0,0.00036989,120]
[339860012,1728077433493,-500.0,0.00036989,120]
[339860013,1728077433503,-500.0,0.00036989,120]
[339860014,1728077433513,-500.0,0.00036989,120]
[339860015,1728077433524,-500.0,0.00036989,120]
[339860016,1728077433535,-500.0,0.00036989,120]
[339860017,1728077433544,-663.62,0.00036989,120]
[339860018,1728077433553,-500.0,0.00036989,120]
[339860019,1728077433563,-500.0,0.00036989,120]
[339860020,1728077433572,-500.0,0.00036989,120]
[339860021,1728077433582,-409.12147331,0.00036989,120]
[339860022,1728077433592,-500.0,0.00036989,120]
[339860023,1728077433601,-500.0,0.00036989,120]
[339860024,1728077433610,-747.99,0.00036989,120]
[339860025,1728077433619,-500.0,0.00036989,120]
[339860026,1728077433629,-500.0,0.00036989,120]
[339860027,1728077433638,-500.0,0.00036989,120]
[339860028,1728077433647,-770.35,0.00036989,120]
[339860029,1728077433657,-500.0,0.00036989,120]
[339860030,1728077433667,-841.06,0.00036989,120]
[339860031,1728077433676,-500.0,0.00036989,120]
[339860032,1728077433686,-500.0,0.00036989,120]
[339860033,1728077433695,-500.0,0.00036989,120]
[339860034,1728077433704,-500.0,0.00036989,120]
[339860035,1728077433714,-500.0,0.00036989,120]
[339860036,1728077433723,-500.0,0.00036989,120]
[339860037,1728077433732,-500.0,0.00036989,120]
[339860038,1728077433742,-500.0,0.00036989,120]
[339860039,1728077433751,-500.0,0.00036989,120]
[339860040,1728077433761,-500.0,0.00036989,120]
[339860041,1728077433770,-500.0,0.00036989,120]
[339860042,1728077433780,-557.17,0.00036989,120]
[339860043,1728077433789,-500.0,0.00036989,120]
[339860044,1728077433800,-500.0,0.00036989,120]
[339860045,1728077433812,-500.0,0.00036989,120]
[339860046,1728077433821,-500.0,0.00036989,120]
[339860047,1728077433831,-2083.73,0.00036989,120]
[339860048,1728077433840,-947.91,0.00036989,120]
[339860049,1728077433849,-500.0,0.00036989,120]
[339860050,1728077433859,-916.06,0.00036989,120]
[339860051,1728077433868,-1747.04,0.00036989,120]
[339860052,1728077433878,-500.0,0.00036989,120]
[339860053,1728077433887,-1034.32,0.00036989,120]
[339860054,1728077433897,-453.69595714,0.00036989,120]
[339860055,1728077433907,-500.0,0.00036989,120]
[339860056,1728077433916,-500.0,0.00036989,120]
[339860057,1728077433925,-1169.71,0.00036989,120]
[339860058,1728077433934,-500.0,0.00036989,120]
[339860059,1728077433943,-1678.52,0.00036989,120]
[339860060,1728077433953,-500.0,0.00036989,120]
[339860061,1728077433962,-500.0,0.00036989,120]
[339860062,1728077433972,-500.0,0.00036989,120]
[339860063,1728077433981,-878.04,0.00036989,120]
[339860064,1728077433991,-500.0,0.00036989,120]
[339860065,1728077434001,-500.0,0.00036989,120]
[339860066,1728077434010,-500.0,0.00036989,120]
[339860067,1728077434019,-500.0,0.00036989,120]
[339860068,1728077434029,-500.0,0.00036989,120]
[339860069,1728077434039,-1080.61,0.00036989,120]
[339860070,1728077434048,-580.92,0.00036989,120]
[339860071,1728077434057,-500.0,0.00036989,120]
[339860072,1728077434066,-500.0,0.00036989,120]
[339860073,1728077434075,-500.0,0.00036989,120]
[339860074,1728077434084,-500.0,0.00036989,120]
[339860075,1728077434094,-500.0,0.00036989,120]
[339860076,1728077434103,-500.0,0.00036989,120]
[339860077,1728077434112,-190.59,0.00036989,120]
[339860078,1728077434122,-500.0,0.00036989,120]
[339860079,1728077434132,-500.0,0.00036989,120]
[339860080,1728077434142,-500.0,0.00036989,120]
[339860081,1728077434152,-500.0,0.00036989,120]
[339860082,1728077434162,-500.0,0.00036989,120]
[339860083,1728077434171,-500.0,0.00036989,120]
[339860084,1728077434180,-500.0,0.00036989,120]
[339860085,1728077434189,-500.0,0.00036989,120]
[339860086,1728077434198,-500.0,0.00036989,120]
[339860087,1728077434207,-500.0,0.00036989,120]
[339860088,1728077434217,-500.0,0.00036989,120]
[339860089,1728077434226,-500.0,0.00036989,120]
[339860090,1728077434236,-500.0,0.00036989,120]
[339860091,1728077434245,-500.0,0.00036989,120]
[339860092,1728077434255,-500.0,0.00036989,120]
[339860093,1728077434263,-500.0,0.00036989,120]
[339860094,1728077434272,-500.0,0.00036989,120]
[339860095,1728077434282,-500.0,0.00036989,120]
[339860096,1728077434291,-500.0,0.00036989,120]
[339860097,1728077434300,-566.85,0.00036989,120]
[339860098,1728077434310,-500.0,0.00036989,120]
[339860099,1728077434319,-500.0,0.00036989,120]
[339860100,1728077434328,-500.0,0.00036989,120]
[339860101,1728077434337,-500.0,0.00036989,120]
[339860102,1728077434346,-344.79980842,0.00036989,120]
[339860103,1728077434355,-500.0,0.00036989,120]
[339860104,1728077434364,-500.0,0.00036989,120]
[339860105,1728077434374,-500.0,0.00036989,120]
[339860106,1728077434383,-500.0,0.00036989,120]
[339860107,1728077434392,-717.54,0.00036989,120]
[339860108,1728077434401,-500.0,0.00036989,120]
[339860109,1728077434413,-500.0,0.00036989,120]
[339860110,1728077434421,-500.0,0.00036989,120]
[339860111,1728077434431,-500.0,0.00036989,120]
[339860112,1728077434440,-500.0,0.00036989,120]
[339860113,1728077434449,-1215.71,0.00036989,120]
[339860114,1728077434459,-500.0,0.00036989,120]
[339860115,1728077434468,-649.96,0.00036989,24]
[339860116,1728077434477,-500.0,0.00036989,120]
[339860117,1728077434486,-1365.89,0.00036989,120]
[339860118,1728077434496,-500.0,0.00036989,120]
[339860119,1728077434506,-500.0,0.00036989,120]
[339860120,1728077434517,-764.16,0.00036989,120]
[339860121,1728077434530,-500.0,0.00036989,120]
[339860122,1728077434539,-500.0,0.00036989,120]
[339860123,1728077434549,-500.0,0.00036989,120]
[339860124,1728077434559,-1131.95,0.00036989,120]
[339860125,1728077434569,-500.0,0.00036989,120]
[339860126,1728077434578,-500.0,0.00036989,120]
[339860127,1728077434587,-1760.79,0.00036989,120]
[339860128,1728077434597,-500.0,0.00036989,120]
[339860129,1728077434607,-804.34,0.00036989,120]
[339860130,1728077434616,-500.0,0.00036989,120]
[339860131,1728077434625,-500.0,0.00036989,120]
[339860132,1728077434634,-500.0,0.00036989,120]
[339860133,1728077434644,-569.17,0.00036989,120]
[339860134,1728077434654,-500.0,0.00036989,120]
[339860135,1728077434664,-500.0,0.00036989,120]
[339860136,1728077434673,-500.0,0.00036989,120]
[339860137,1728077434683,-500.0,0.00036989,120]
[339860138,1728077434692,-500.0,0.00036989,120]
[339860139,1728077434701,-500.0,0.00036989,120]
[339860140,1728077434710,-509.12,0.00036989,120]
[339860141,1728077434719,-500.0,0.00036989,120]
[339860142,1728077434728,-500.0,0.00036989,120]
[339860143,1728077434737,-500.0,0.00036989,120]
[339860144,1728077434746,-500.0,0.00036989,120]
[339860145,1728077434756,-500.0,0.00036989,120]
[339860146,1728077434765,-52720.3728358,0.0003699,6]
[339860147,1728077434774,-26360.1864179,0.0003699,6]
[339860148,1728077434783,-127471.15133735,0.0003699,6]
[339860149,1728077434932,-284.48168963,0.0003699,6]
[339860150,1728077434942,-63031.35909185,0.0003699,6]
[339860151,1728077434954,-102055.19876117,0.0003699,6]
[339860152,1728077434963,-1963.71634312,0.00036998,2]
[339860153,1728077434973,-330.33408002,0.00036999,15]
[339860154,1728077434982,-250.0,0.00036999,2]
[339860155,1728077434991,-2000.0,0.00036999,2]
[339860156,1728077435000,-52329.52825032,0.00037,15]
[339860157,1728077435009,-4084.20305569,0.00037,15]
[339860158,1728077435020,-3094.63215291,0.00037,15]
[339860159,1728077435031,-2948.80265338,0.00037,15]
[339860160,1728077435042,-3753.76120749,0.00037,15]
[339860161,1728077435053,-10774.44975929,0.00037,15]
[339860162,1728077435064,-1245.568807,0.00037,15]
[339860163,1728077435076,-2763.18092288,0.00037,15]
[339860164,1728077435087,-896.13144154,0.00037,15]
[339860168,1728077437535,-686.15,0.00036987,120]
[339860169,1728077437544,-500.0,0.00036987,120]
[339860170,1728077437554,-1110973.80355212,0.00037,15]
[339860171,1728077437704,-766.80400633,0.00037,15]
[339860172,1728077437715,-999.99999999,0.00037,15]
[339860173,1728077437727,-25248.69888996,0.00037,15]
[339860174,1728077437738,-11216.25702667,0.00037,15]
[339860175,1728077437749,-12612.34474342,0.00037,15]
[339860183,1728077439612,-496.91325519,0.00037,15]
[339860209,1728077442726,-543.24,0.00036988,120]
[339860210,1728077442736,-5188.36,0.00037,15]
[339860215,1728077585978,164.25,0.00010959,2]
[339860216,1728077802031,250.0,0.00013,2]
[339860234,1728078631680,-300.0,0.00015,2]
[339860235,1728078631692,-350.0,0.00017,2]
[339860236,1728078631702,-500.0,0.00024932,2]
[339860237,1728078631712,-932.0,0.000317,4]
[339860238,1728078631721,-9111.00085824,0.000317,2]
[339860239,1728078631755,-712.02367317,0.000317,2]
[339860240,1728078631766,-603.91888408,0.000317,2]
[339860241,1728078631779,-377.06213163,0.000317,2]
[339860242,1728078631829,-857.27536302,0.000317,2]
[339860243,1728078631838,-297.97,0.00033668,2]
[339860244,1728078631848,-166.42,0.00034935,2]
[339860245,1728078631858,-155.22,0.0003511,120]
[339860246,1728078631868,-1500.0,0.00035237,50]
[339860247,1728078631876,-200.0,0.00035265,2]
[339860248,1728078631886,-397.66,0.00035279,2]
[339860249,1728078631895,-3338.61,0.00035283,2]
[339860250,1728078631904,-243.5,0.00035296,2]
[339860251,1728078631915,-250.0,0.00035499,2]
[339860252,1728078631924,-250.0,0.00035522,2]
[339860253,1728078631933,-2751.0,0.00035536,2]
[339860254,1728078631942,-2000.0,0.00035544,120]
[339860255,1728078631952,-406.54,0.00035554,2]
[339860256,1728078631963,-250.0,0.00035557,120]
[339860257,1728078631973,-1000.0,0.0003558,2]
[339860258,1728078631983,-503.466,0.00035583,42]
[339860260,1728078631994,-169.162,0.00035583,42]
[339860262,1728078632004,-150.0,0.00035586,2]
[339860264,1728078632013,-416.47,0.00035586,2]
[339860266,1728078632023,-375.12,0.00035599,120]
[339860268,1728078632032,-181.4,0.00035604,120]
[339860270,1728078632041,-5646.348,0.00035604,2]
[339860272,1728078632050,-252.86,0.00035799,2]
[339860274,1728078632062,-1067.35,0.00035799,2]
[339860276,1728078632071,-297.97,0.00035932,2]
[339860277,1728078632080,-1303.83,0.00036082,2]
[339860279,1728078632089,-754.45,0.00036082,2]
[339860281,1728078632098,-754.45,0.00036082,2]
[339860283,1728078632108,-754.45,0.00036082,2]
[339860285,1728078632117,-754.45,0.00036082,2]
[339860287,1728078632126,-754.45,0.00036082,2]
[339860289,1728078632136,-280.78,0.00036172,120]
[339860291,1728078632145,-150.49,0.00036192,2]
[339860293,1728078632155,-534.0,0.00036278,2]
[339860295,1728078632165,-534.0,0.00036278,2]
[339860297,1728078632173,-534.0,0.00036278,2]
[339860299,1728078632183,-846.05,0.00036341,2]
[339860301,1728078632192,-167.42,0.00036438,2]
[339860303,1728078632201,-302.22,0.00036621,2]
[339860305,1728078632210,-1144.14223743,0.00036788,2]
[339860307,1728078632219,-2894.7516,0.00036798,2]
[339860309,1728078632229,-1642.038483,0.000368,2]
[339860311,1728078632238,-2979.5788,0.0003688,2]
[339860313,1728078632247,-364.0708,0.00036886,2]
[339860315,1728078632256,-13753.86664837,0.00036887,15]
[339860317,1728078632265,-7240.8147,0.00036887,2]
[339860319,1728078632275,-2500.0,0.00036887,2]
[339860320,1728078632284,-1865.37677858,0.00036898,9]
[339860322,1728078632293,-647.69289835,0.00036898,2]
[339860324,1728078632304,-7500.0,0.000369,2]
[339860326,1728078632313,-168.33312733,0.000369,2]
[339860328,1728078632322,-5821.5306,0.000369,2]
[339860330,1728078632331,-764.7797,0.000369,2]
[339860331,1728078632340,-2981.3747,0.000369,2]
[339860332,1728078632350,-1000.0,0.000369,10]
[339860333,1728078632359,-1000.0,0.000369,11]
[339860334,1728078632368,-1000.0,0.000369,12]
[339860335,1728078632378,-1000.0,0.000369,13]
[339860336,1728078632387,-1000.0,0.000369,14]
[339860337,1728078632396,-1000.0,0.000369,15]
[339860338,1728078632405,-1000.0,0.000369,16]
[339860339,1728078632415,-1000.0,0.000369,17]
[339860340,1728078632423,-1000.0,0.000369,18]
[339860341,1728078632432,-1000.0,0.000369,19]
[339860342,1728078632441,-1000.0,0.000369,20]
[339860343,1728078632450,-1000.0,0.000369,21]
[339860344,1728078632459,-1000.0,0.000369,22]
[339860345,1728078632468,-1000.0,0.000369,23]
[339860346,1728078632478,-1000.0,0.000369,24]
[339860347,1728078632487,-1000.0,0.000369,25]
[339860348,1728078632496,-1000.0,0.000369,26]
[339860349,1728078632506,-1000.0,0.000369,27]
[339860350,1728078632516,-1000.0,0.000369,28]
[339860351,1728078632525,-1000.0,0.000369,29]
[339860352,1728078632536,-1000.0,0.000369,30]
[339860353,1728078632546,-1000.0,0.000369,31]
[339860354,1728078632556,-1000.0,0.000369,32]
[339860355,1728078632565,-1000.0,0.000369,33]
[339860356,1728078632574,-1000.0,0.000369,34]
[339860357,1728078632583,-1000.0,0.000369,35]
[339860358,1728078632593,-1000.0,0.000369,36]
[339860359,1728078632602,-1000.0,0.000369,37]
[339860360,1728078632612,-1000.0,0.000369,38]
[339860361,1728078632622,-1000.0,0.000369,39]
[339860362,1728078632631,-1000.0,0.000369,40]
[339860363,1728078632640,-1000.0,0.000369,41]
[339860364,1728078632649,-1000.0,0.000369,42]
[339860365,1728078632659,-1000.0,0.000369,43]
[339860366,1728078632668,-1000.0,0.000369,44]
[339860367,1728078632678,-1000.0,0.000369,45]
[339860368,1728078632687,-1000.0,0.000369,46]
[339860369,1728078632698,-1000.0,0.000369,47]
[339860370,1728078632707,-1000.0,0.000369,48]
[339860371,1728078632717,-1000.0,0.000369,49]
[339860372,1728078632726,-1000.0,0.000369,50]
[339860373,1728078632735,-1000.0,0.000369,51]
[339860374,1728078632746,-1000.0,0.000369,52]
[339860375,1728078632757,-1000.0,0.000369,53]
[339860376,1728078632767,-1000.0,0.000369,54]
[339860377,1728078632776,-1000.0,0.000369,55]
[339860378,1728078632786,-1000.0,0.000369,56]
[339860379,1728078632796,-1000.0,0.000369,57]
[339860380,1728078632806,-1000.0,0.000369,58]
[339860381,1728078632815,-1000.0,0.000369,59]
[339860382,1728078632825,-522.52599264,0.000369,60]
[339860383,1728078632835,-200.22168513,0.000369,9]
[339860384,1728078632844,-352.2339743,0.000369,11]
[339860385,1728078632853,-192.24,0.00036902,2]
[339860386,1728078632862,-300.0,0.00036903,2]
[339860387,1728078632871,-153.83472069,0.00036939,2]
[339860388,1728078632880,-298.90005562,0.00036941,2]
[339860389,1728078632890,-973.24880177,0.00036941,2]
[339860390,1728078632899,-188.53432574,0.00036941,2]